[Event "Titled Tuesday Blitz July 11 Late 2023"]
[White "Krzywda, Andrzej"]
[Black "ArchibaldCerveza29"]
[WhiteFideId "1114565"]
[WhiteElo "2404"]
[BlackElo "2529"]
[Result "1-0"]
[Round "11"]
[TimeControl "180+2"]
[Date "2023.07.11"]
[WhiteClock "0:00:10"]
[BlackClock "0:00:17"]
[Board "66"]

1. e4 {[%clk 0:03:00]}  e5 {[%clk 0:02:54]} 2. Nf3 {[%clk 0:03:00]}  Nc6 {[%clk 0:02:53]} 3. Bb5 {[%clk 0:03:01]}  g6 {[%clk 0:02:53]} 4. d4 {[%clk 0:02:58]}  exd4 {[%clk 0:02:53]} 5. Bg5 {[%clk 0:02:59]}  Be7 {[%clk 0:02:53]} 6. Bxe7 {[%clk 0:02:59]}  Qxe7 {[%clk 0:02:54]} 7. O-O {[%clk 0:02:58]}  Nf6 {[%clk 0:02:52]} 8. e5 {[%clk 0:02:59]}  Nd5 {[%clk 0:02:53]} 9. Re1 {[%clk 0:02:46]}  O-O {[%clk 0:02:52]} 10. Bc4 {[%clk 0:02:31]}  Qc5 {[%clk 0:02:49]} 11. Bb3 {[%clk 0:02:30]}  d6 {[%clk 0:02:39]} 12. Nbd2 {[%clk 0:02:25]}  Bg4 {[%clk 0:02:33]} 13. Ne4 {[%clk 0:02:18]}  Qa5 {[%clk 0:02:33]} 14. Bxd5 {[%clk 0:02:15]}  Bxf3 {[%clk 0:02:25]} 15. Qxf3 {[%clk 0:02:10]}  Nxe5 {[%clk 0:02:26]} 16. Qg3 {[%clk 0:01:53]}  Kg7 {[%clk 0:02:18]} 17. Bb3 {[%clk 0:01:50]}  c5 {[%clk 0:02:03]} 18. Nxd6 {[%clk 0:01:48]}  Nc6 {[%clk 0:02:01]} 19. Nc4 {[%clk 0:01:45]}  Qd8 {[%clk 0:01:49]} 20. Qd6 {[%clk 0:01:40]}  Qg5 {[%clk 0:01:49]} 21. f4 {[%clk 0:01:32]}  Qf5 {[%clk 0:01:43]} 22. Ne5 {[%clk 0:01:24]}  Rad8 {[%clk 0:01:42]} 23. Qxc5 {[%clk 0:01:20]}  Qxf4 {[%clk 0:01:37]} 24. Nxc6 {[%clk 0:01:18]}  bxc6 {[%clk 0:01:35]} 25. Qxc6 {[%clk 0:01:13]}  Rd6 {[%clk 0:01:26]} 26. Qf3 {[%clk 0:01:10]}  Qg5 {[%clk 0:01:25]} 27. Rad1 {[%clk 0:01:05]}  Rf6 {[%clk 0:01:25]} 28. Qg3 {[%clk 0:01:04]}  Qc5 {[%clk 0:01:26]} 29. Qd3 {[%clk 0:01:03]}  Rd8 {[%clk 0:01:25]} 30. Re4 {[%clk 0:01:03]}  Qf5 {[%clk 0:01:23]} 31. Rf1 {[%clk 0:00:57]}  Qg5 {[%clk 0:01:14]} 32. Rxf6 {[%clk 0:00:56]}  Qxf6 {[%clk 0:01:14]} 33. Re1 {[%clk 0:00:52]}  h5 {[%clk 0:01:10]} 34. Rf1 {[%clk 0:00:51]}  Qe5 {[%clk 0:01:10]} 35. Rxf7+ {[%clk 0:00:51]}  Kh8 {[%clk 0:01:11]} 36. Rf1 {[%clk 0:00:48]}  Qg5 {[%clk 0:01:08]} 37. Qg3 {[%clk 0:00:42]}  Qxg3 {[%clk 0:01:07]} 38. hxg3 {[%clk 0:00:42]}  a5 {[%clk 0:01:08]} 39. Rf6 {[%clk 0:00:38]}  a4 {[%clk 0:01:08]} 40. Bxa4 {[%clk 0:00:38]}  d3 {[%clk 0:01:09]} 41. cxd3 {[%clk 0:00:37]}  h4 {[%clk 0:01:10]} 42. gxh4 {[%clk 0:00:37]}  g5 {[%clk 0:01:10]} 43. hxg5 {[%clk 0:00:37]}  Kg7 {[%clk 0:01:11]} 44. Rf3 {[%clk 0:00:35]}  Rd4 {[%clk 0:01:10]} 45. Bb3 {[%clk 0:00:34]}  Rd6 {[%clk 0:01:08]} 46. g4 {[%clk 0:00:34]}  Rg6 {[%clk 0:01:07]} 47. Kg2 {[%clk 0:00:34]}  Rxg5 {[%clk 0:01:08]} 48. Kg3 {[%clk 0:00:35]}  Kh8 {[%clk 0:01:07]} 49. Rf8+ {[%clk 0:00:30]}  Kh7 {[%clk 0:01:06]} 50. Rf7+ {[%clk 0:00:27]}  Kh8 {[%clk 0:01:06]} 51. Rf5 {[%clk 0:00:28]}  Rg6 {[%clk 0:01:04]} 52. Kh4 {[%clk 0:00:25]}  Rc6 {[%clk 0:01:04]} 53. Rf8+ {[%clk 0:00:22]}  Kg7 {[%clk 0:01:04]} 54. Rg8+ {[%clk 0:00:22]}  Kh7 {[%clk 0:01:04]} 55. Rg5 {[%clk 0:00:21]}  Kh6 {[%clk 0:01:02]} 56. Re5 {[%clk 0:00:20]}  Kg7 {[%clk 0:01:00]} 57. Kg5 {[%clk 0:00:18]}  Rg6+ {[%clk 0:00:59]} 58. Kf5 {[%clk 0:00:18]}  Rf6+ {[%clk 0:00:59]} 59. Kg5 {[%clk 0:00:18]}  Rg6+ {[%clk 0:00:59]} 60. Kf4 {[%clk 0:00:19]}  Rf6+ {[%clk 0:00:58]} 61. Rf5 {[%clk 0:00:19]}  Rc6 {[%clk 0:00:59]} 62. g5 {[%clk 0:00:19]}  Kh8 {[%clk 0:00:54]} 63. Rb5 {[%clk 0:00:17]}  Kg7 {[%clk 0:00:52]} 64. Bc4 {[%clk 0:00:17]}  Rd6 {[%clk 0:00:49]} 65. a4 {[%clk 0:00:17]}  Rd4+ {[%clk 0:00:48]} 66. Kf5 {[%clk 0:00:17]}  Rd6 {[%clk 0:00:46]} 67. a5 {[%clk 0:00:17]}  Rd8 {[%clk 0:00:42]} 68. Rb6 {[%clk 0:00:17]}  Rf8+ {[%clk 0:00:42]} 69. Kg4 {[%clk 0:00:16]}  Rf1 {[%clk 0:00:41]} 70. a6 {[%clk 0:00:16]}  Rg1+ {[%clk 0:00:42]} 71. Kf5 {[%clk 0:00:16]}  Rf1+ {[%clk 0:00:42]} 72. Ke5 {[%clk 0:00:16]}  Re1+ {[%clk 0:00:43]} 73. Kd6 {[%clk 0:00:16]}  Rg1 {[%clk 0:00:38]} 74. a7 {[%clk 0:00:15]}  Rxg5 {[%clk 0:00:39]} 75. a8=Q {[%clk 0:00:15]}  Rg6+ {[%clk 0:00:39]} 76. Kc5 {[%clk 0:00:15]}  Rg5+ {[%clk 0:00:30]} 77. Kb4 {[%clk 0:00:14]}  Kh7 {[%clk 0:00:21]} 78. Rb7+ {[%clk 0:00:13]}  Rg7 {[%clk 0:00:19]} 79. Rxg7+ {[%clk 0:00:11]}  Kh6 {[%clk 0:00:17]} 80. Qh8# {[%clk 0:00:10]} 1-0


[Site "https://www.chess.com"]

[Event "Titled Tuesday Blitz July 11 Late 2023"]
[White "Michalczak, Thomas"]
[Black "Kostiukov, Alexandr"]
[WhiteFideId "4622634"]
[BlackFideId "14108100"]
[WhiteElo "2526"]
[BlackElo "2344"]
[Result "0-1"]
[Round "11"]
[TimeControl "180+2"]
[Date "2023.07.11"]
[WhiteClock "0:01:40"]
[BlackClock "0:01:06"]
[Board "68"]

1. e4 {[%clk 0:02:46]}  c5 {[%clk 0:02:58]} 2. c3 {[%clk 0:02:46]}  g6 {[%clk 0:02:58]} 3. d4 {[%clk 0:02:45]}  cxd4 {[%clk 0:02:58]} 4. cxd4 {[%clk 0:02:46]}  d5 {[%clk 0:02:59]} 5. e5 {[%clk 0:02:47]}  Bg7 {[%clk 0:02:58]} 6. Nc3 {[%clk 0:02:47]}  Nh6 {[%clk 0:02:58]} 7. h3 {[%clk 0:02:48]}  O-O {[%clk 0:02:58]} 8. g4 {[%clk 0:02:48]}  f6 {[%clk 0:02:58]} 9. f4 {[%clk 0:02:49]}  fxe5 {[%clk 0:02:56]} 10. fxe5 {[%clk 0:02:48]}  e6 {[%clk 0:02:43]} 11. Nf3 {[%clk 0:02:48]}  Nf7 {[%clk 0:02:40]} 12. Bg2 {[%clk 0:02:47]}  Nc6 {[%clk 0:02:37]} 13. O-O {[%clk 0:02:47]}  b5 {[%clk 0:02:30]} 14. a3 {[%clk 0:02:42]}  Qb6 {[%clk 0:02:29]} 15. Bd2 {[%clk 0:02:42]}  Nfxe5 {[%clk 0:02:25]} 16. Be3 {[%clk 0:02:37]}  Nxf3+ {[%clk 0:02:24]} 17. Rxf3 {[%clk 0:02:37]}  Rxf3 {[%clk 0:02:22]} 18. Bxf3 {[%clk 0:02:33]}  Bxd4 {[%clk 0:02:21]} 19. Bxd4 {[%clk 0:02:29]}  Qxd4+ {[%clk 0:02:21]} 20. Qxd4 {[%clk 0:02:28]}  Nxd4 {[%clk 0:02:21]} 21. Bg2 {[%clk 0:02:29]}  Rb8 {[%clk 0:02:02]} 22. Rd1 {[%clk 0:02:25]}  Nc2 {[%clk 0:01:50]} 23. Kf2 {[%clk 0:02:12]}  b4 {[%clk 0:01:49]} 24. axb4 {[%clk 0:02:12]}  Rxb4 {[%clk 0:01:48]} 25. Rd2 {[%clk 0:02:09]}  Rxb2 {[%clk 0:01:43]} 26. Nxd5 {[%clk 0:02:09]}  exd5 {[%clk 0:01:29]} 27. Bxd5+ {[%clk 0:02:10]}  Kg7 {[%clk 0:01:28]} 28. Be4 {[%clk 0:02:10]}  Be6 {[%clk 0:01:24]} 29. Rxc2 {[%clk 0:02:04]}  Rxc2+ {[%clk 0:01:23]} 30. Bxc2 {[%clk 0:02:05]}  Kf6 {[%clk 0:01:18]} 31. Ke3 {[%clk 0:02:04]}  h6 {[%clk 0:01:16]} 32. Kf4 {[%clk 0:02:03]}  Bd5 {[%clk 0:01:13]} 33. h4 {[%clk 0:01:59]}  g5+ {[%clk 0:01:13]} 34. hxg5+ {[%clk 0:02:00]}  hxg5+ {[%clk 0:01:14]} 35. Ke3 {[%clk 0:01:57]}  Ke5 {[%clk 0:01:15]} 36. Bf5 {[%clk 0:01:57]}  Be6 {[%clk 0:01:12]} 37. Bd3 {[%clk 0:01:50]}  Bxg4 {[%clk 0:01:11]} 38. Bc4 {[%clk 0:01:49]}  Be6 {[%clk 0:01:11]} 39. Bd3 {[%clk 0:01:48]}  Bd5 {[%clk 0:01:10]} 40. Bb5 {[%clk 0:01:48]}  a5 {[%clk 0:01:10]} 41. Kf2 {[%clk 0:01:48]}  Kf4 {[%clk 0:01:10]} 42. Kg1 {[%clk 0:01:48]}  Kg3 {[%clk 0:01:09]} 43. Ba4 {[%clk 0:01:48]}  g4 {[%clk 0:01:08]} 44. Bb5 {[%clk 0:01:40]}  Bb3 {[%clk 0:01:06]} 0-1


[Site "https://www.chess.com"]

[Event "Titled Tuesday Blitz July 11 Late 2023"]
[White "Marchesich, Giovanni"]
[Black "D`Arruda, Ricardo D."]
[WhiteFideId "2824790"]
[BlackFideId "100692"]
[WhiteElo "2301"]
[BlackElo "2515"]
[Result "1-0"]
[Round "11"]
[TimeControl "180+2"]
[Date "2023.07.11"]
[WhiteClock "0:00:36"]
[BlackClock "0:00:25"]
[Board "69"]

1. g3 {[%clk 0:03:00]}  d5 {[%clk 0:02:21]} 2. Bg2 {[%clk 0:03:00]}  c6 {[%clk 0:02:22]} 3. Nh3 {[%clk 0:03:00]}  Nf6 {[%clk 0:02:21]} 4. f3 {[%clk 0:03:00]}  e5 {[%clk 0:02:20]} 5. Nf2 {[%clk 0:03:01]}  Bc5 {[%clk 0:02:17]} 6. O-O {[%clk 0:03:01]}  O-O {[%clk 0:02:17]} 7. c3 {[%clk 0:03:00]}  d4 {[%clk 0:02:15]} 8. d3 {[%clk 0:02:52]}  Nd5 {[%clk 0:02:12]} 9. c4 {[%clk 0:02:49]}  Ne3 {[%clk 0:02:11]} 10. Bxe3 {[%clk 0:02:49]}  dxe3 {[%clk 0:02:12]} 11. Ne4 {[%clk 0:02:50]}  Bd4 {[%clk 0:02:12]} 12. Nec3 {[%clk 0:02:38]}  f5 {[%clk 0:02:09]} 13. Na3 {[%clk 0:02:38]}  f4 {[%clk 0:02:07]} 14. Nc2 {[%clk 0:02:38]}  c5 {[%clk 0:02:04]} 15. Rb1 {[%clk 0:02:35]}  Nc6 {[%clk 0:02:02]} 16. Ne4 {[%clk 0:02:36]}  Qe7 {[%clk 0:01:59]} 17. Qe1 {[%clk 0:02:32]}  a5 {[%clk 0:01:58]} 18. h4 {[%clk 0:02:16]}  Nb4 {[%clk 0:01:52]} 19. Nxd4 {[%clk 0:02:04]}  exd4 {[%clk 0:01:38]} 20. a3 {[%clk 0:02:04]}  Nc6 {[%clk 0:01:38]} 21. Kh2 {[%clk 0:02:04]}  fxg3+ {[%clk 0:01:37]} 22. Qxg3 {[%clk 0:02:04]}  Ne5 {[%clk 0:01:34]} 23. Rg1 {[%clk 0:02:02]}  Ra6 {[%clk 0:01:31]} 24. Bh3 {[%clk 0:01:42]}  Rg6 {[%clk 0:01:24]} 25. Ng5 {[%clk 0:01:32]}  h6 {[%clk 0:00:57]} 26. Bxc8 {[%clk 0:01:32]}  hxg5 {[%clk 0:00:52]} 27. h5 {[%clk 0:01:29]}  Rh6 {[%clk 0:00:49]} 28. Bg4 {[%clk 0:01:28]}  Rf4 {[%clk 0:00:44]} 29. Kg2 {[%clk 0:01:25]}  Nxg4 {[%clk 0:00:40]} 30. fxg4 {[%clk 0:01:23]}  Rf2+ {[%clk 0:00:39]} 31. Kh3 {[%clk 0:01:23]}  Rhf6 {[%clk 0:00:36]} 32. Rg2 {[%clk 0:01:11]}  Rxg2 {[%clk 0:00:33]} 33. Qxg2 {[%clk 0:01:08]}  Rf2 {[%clk 0:00:32]} 34. Qd5+ {[%clk 0:01:08]}  Kh7 {[%clk 0:00:31]} 35. b4 {[%clk 0:00:56]}  axb4 {[%clk 0:00:28]} 36. axb4 {[%clk 0:00:56]}  cxb4 {[%clk 0:00:27]} 37. c5 {[%clk 0:00:53]}  Rxe2 {[%clk 0:00:25]} 38. Qf5+ {[%clk 0:00:51]}  Kh6 {[%clk 0:00:25]} 39. Qg6# {[%clk 0:00:36]} 1-0


[Site "https://www.chess.com"]

[Event "Titled Tuesday Blitz July 11 Late 2023"]
[White "Mindhunter08"]
[Black "gordonzyxu"]
[WhiteElo "2507"]
[BlackElo "2037"]
[Result "0-1"]
[Round "11"]
[TimeControl "180+2"]
[Date "2023.07.11"]
[WhiteClock "0:00:03"]
[BlackClock "0:00:05"]
[Board "70"]

1. e4 {[%clk 0:03:00]}  e5 {[%clk 0:02:57]} 2. Nf3 {[%clk 0:02:59]}  Nf6 {[%clk 0:02:55]} 3. Nxe5 {[%clk 0:02:59]}  d6 {[%clk 0:02:55]} 4. Nf3 {[%clk 0:02:58]}  Nxe4 {[%clk 0:02:55]} 5. Nc3 {[%clk 0:02:58]}  Nxc3 {[%clk 0:02:52]} 6. dxc3 {[%clk 0:02:59]}  Be7 {[%clk 0:02:53]} 7. Be3 {[%clk 0:02:59]}  O-O {[%clk 0:02:53]} 8. Qd2 {[%clk 0:02:59]}  Nd7 {[%clk 0:02:54]} 9. O-O-O {[%clk 0:02:57]}  Nf6 {[%clk 0:02:55]} 10. Bd3 {[%clk 0:02:51]}  c5 {[%clk 0:02:55]} 11. Bf4 {[%clk 0:02:47]}  b6 {[%clk 0:02:51]} 12. Rhe1 {[%clk 0:02:43]}  b5 {[%clk 0:02:47]} 13. Rxe7 {[%clk 0:02:35]}  Qxe7 {[%clk 0:02:33]} 14. Bxd6 {[%clk 0:02:35]}  Qe6 {[%clk 0:02:11]} 15. Bxf8 {[%clk 0:02:20]}  Qxa2 {[%clk 0:02:10]} 16. Qg5 {[%clk 0:02:14]}  Kxf8 {[%clk 0:02:06]} 17. Qxc5+ {[%clk 0:02:14]}  Kg8 {[%clk 0:01:55]} 18. Qb4 {[%clk 0:01:28]}  Be6 {[%clk 0:01:49]} 19. Ng5 {[%clk 0:01:21]}  a5 {[%clk 0:01:28]} 20. Qxb5 {[%clk 0:01:16]}  a4 {[%clk 0:01:13]} 21. Nxe6 {[%clk 0:01:05]}  Qxe6 {[%clk 0:01:14]} 22. Bc4 {[%clk 0:01:03]}  Qe7 {[%clk 0:01:06]} 23. Qc6 {[%clk 0:00:50]}  Rb8 {[%clk 0:00:44]} 24. Qxa4 {[%clk 0:00:47]}  Qb7 {[%clk 0:00:40]} 25. Qa2 {[%clk 0:00:41]}  Ng4 {[%clk 0:00:18]} 26. Bd5 {[%clk 0:00:28]}  Qc7 {[%clk 0:00:15]} 27. f3 {[%clk 0:00:13]}  Qf4+ {[%clk 0:00:11]} 28. Kb1 {[%clk 0:00:12]}  Ne3 {[%clk 0:00:10]} 29. Re1 {[%clk 0:00:13]}  Nxg2 {[%clk 0:00:08]} 30. Rc1 {[%clk 0:00:09]}  Ne3 {[%clk 0:00:07]} 31. Be4 {[%clk 0:00:07]}  Qc7 {[%clk 0:00:06]} 32. Re1 {[%clk 0:00:06]}  Qxc3 {[%clk 0:00:05]} 33. Kc1 {[%clk 0:00:03]}  Qxe1# {[%clk 0:00:05]} 0-1


[Site "https://www.chess.com"]

[Event "Titled Tuesday Blitz July 11 Late 2023"]
[White "Balla, Tamas-Kristof"]
[Black "Kirillov, Dmitry"]
[WhiteFideId "1208497"]
[BlackFideId "34180572"]
[WhiteElo "2383"]
[BlackElo "2527"]
[Result "1/2-1/2"]
[Round "11"]
[TimeControl "180+2"]
[Date "2023.07.11"]
[WhiteClock "0:00:05"]
[BlackClock "0:00:07"]
[Board "72"]

1. e4 {[%clk 0:03:00]}  Nf6 {[%clk 0:02:55]} 2. e5 {[%clk 0:03:00]}  Ng8 {[%clk 0:02:55]} 3. d4 {[%clk 0:02:56]}  d6 {[%clk 0:02:56]} 4. exd6 {[%clk 0:02:50]}  exd6 {[%clk 0:02:53]} 5. c4 {[%clk 0:02:46]}  f5 {[%clk 0:02:44]} 6. Nc3 {[%clk 0:02:45]}  Nf6 {[%clk 0:02:45]} 7. Nf3 {[%clk 0:02:44]}  g6 {[%clk 0:02:45]} 8. Bd3 {[%clk 0:02:44]}  Bg7 {[%clk 0:02:45]} 9. O-O {[%clk 0:02:45]}  O-O {[%clk 0:02:46]} 10. Re1 {[%clk 0:02:42]}  Nc6 {[%clk 0:02:46]} 11. d5 {[%clk 0:02:41]}  Nb4 {[%clk 0:02:43]} 12. Ng5 {[%clk 0:02:23]}  Nxd3 {[%clk 0:02:37]} 13. Qxd3 {[%clk 0:02:24]}  Re8 {[%clk 0:02:36]} 14. Bd2 {[%clk 0:02:20]}  Bd7 {[%clk 0:02:35]} 15. Rxe8+ {[%clk 0:02:19]}  Qxe8 {[%clk 0:02:35]} 16. Re1 {[%clk 0:02:19]}  Qf8 {[%clk 0:02:31]} 17. Ne6 {[%clk 0:02:17]}  Bxe6 {[%clk 0:02:31]} 18. Rxe6 {[%clk 0:02:15]}  Re8 {[%clk 0:02:30]} 19. h3 {[%clk 0:01:16]}  Rxe6 {[%clk 0:02:29]} 20. dxe6 {[%clk 0:01:17]}  Qe7 {[%clk 0:02:28]} 21. Nd5 {[%clk 0:01:14]}  Nxd5 {[%clk 0:02:26]} 22. cxd5 {[%clk 0:01:14]}  c6 {[%clk 0:02:19]} 23. Bc3 {[%clk 0:01:05]}  cxd5 {[%clk 0:02:12]} 24. Qxd5 {[%clk 0:00:56]}  Bxc3 {[%clk 0:02:11]} 25. bxc3 {[%clk 0:00:57]}  a6 {[%clk 0:02:04]} 26. a4 {[%clk 0:00:56]}  Kg7 {[%clk 0:02:03]} 27. Qd4+ {[%clk 0:00:56]}  Kg8 {[%clk 0:01:59]} 28. a5 {[%clk 0:00:55]}  Qxe6 {[%clk 0:01:55]} 29. Qb4 {[%clk 0:00:54]}  Qe1+ {[%clk 0:01:55]} 30. Kh2 {[%clk 0:00:53]}  Qe7 {[%clk 0:01:50]} 31. g3 {[%clk 0:00:50]}  Kg7 {[%clk 0:01:50]} 32. h4 {[%clk 0:00:48]}  h6 {[%clk 0:01:44]} 33. Qb6 {[%clk 0:00:48]}  Kh7 {[%clk 0:01:43]} 34. Qd4 {[%clk 0:00:47]}  g5 {[%clk 0:01:35]} 35. hxg5 {[%clk 0:00:46]}  hxg5 {[%clk 0:01:35]} 36. Qd5 {[%clk 0:00:43]}  Kg6 {[%clk 0:01:27]} 37. Qg8+ {[%clk 0:00:43]}  Kf6 {[%clk 0:01:24]} 38. Qd5 {[%clk 0:00:42]}  g4 {[%clk 0:01:15]} 39. Qd4+ {[%clk 0:00:32]}  Qe5 {[%clk 0:01:13]} 40. Qb6 {[%clk 0:00:30]}  Qe7 {[%clk 0:01:08]} 41. c4 {[%clk 0:00:30]}  Kg5 {[%clk 0:01:05]} 42. Qd4 {[%clk 0:00:23]}  Qe5 {[%clk 0:01:00]} 43. Qb6 {[%clk 0:00:22]}  Qe7 {[%clk 0:00:48]} 44. Qd4 {[%clk 0:00:20]}  Kg6 {[%clk 0:00:49]} 45. Qb6 {[%clk 0:00:20]}  f4 {[%clk 0:00:47]} 46. gxf4 {[%clk 0:00:19]}  Kf5 {[%clk 0:00:46]} 47. Qd4 {[%clk 0:00:18]}  Qe2 {[%clk 0:00:31]} 48. Qd5+ {[%clk 0:00:14]}  Kxf4 {[%clk 0:00:26]} 49. Qxd6+ {[%clk 0:00:14]}  Kg5 {[%clk 0:00:20]} 50. Qd8+ {[%clk 0:00:14]}  Kg6 {[%clk 0:00:18]} 51. Qd6+ {[%clk 0:00:13]}  Kf5 {[%clk 0:00:18]} 52. Qd5+ {[%clk 0:00:13]}  Qe5+ {[%clk 0:00:15]} 53. Kg2 {[%clk 0:00:10]}  Qxd5+ {[%clk 0:00:05]} 54. cxd5 {[%clk 0:00:11]}  Ke5 {[%clk 0:00:05]} 55. Kg3 {[%clk 0:00:11]}  Kxd5 {[%clk 0:00:05]} 56. Kxg4 {[%clk 0:00:12]}  b5 {[%clk 0:00:06]} 57. axb6 {[%clk 0:00:11]}  Kc6 {[%clk 0:00:06]} 58. f4 {[%clk 0:00:10]}  a5 {[%clk 0:00:07]} 59. f5 {[%clk 0:00:09]}  a4 {[%clk 0:00:06]} 60. f6 {[%clk 0:00:09]}  a3 {[%clk 0:00:07]} 61. f7 {[%clk 0:00:10]}  a2 {[%clk 0:00:08]} 62. f8=Q {[%clk 0:00:10]}  a1=Q {[%clk 0:00:08]} 63. Qc8+ {[%clk 0:00:03]}  Kxb6 {[%clk 0:00:08]} 64. Qb8+ {[%clk 0:00:03]}  Kc6 {[%clk 0:00:08]} 65. Qc8+ {[%clk 0:00:03]}  Kb6 {[%clk 0:00:08]} 66. Qb8+ {[%clk 0:00:03]}  Kc5 {[%clk 0:00:07]} 67. Qc7+ {[%clk 0:00:03]}  Kb4 {[%clk 0:00:07]} 68. Qb6+ {[%clk 0:00:03]}  Kc4 {[%clk 0:00:06]} 69. Qc6+ {[%clk 0:00:03]}  Kb3 {[%clk 0:00:06]} 70. Qb5+ {[%clk 0:00:04]}  Kc2 {[%clk 0:00:06]} 71. Qc4+ {[%clk 0:00:04]}  Kb1 {[%clk 0:00:07]} 72. Qf1+ {[%clk 0:00:04]}  Ka2 {[%clk 0:00:06]} 73. Qxa1+ {[%clk 0:00:05]}  Kxa1 {[%clk 0:00:07]} 1/2-1/2


[Site "https://www.chess.com"]

[Event "Titled Tuesday Blitz July 11 Late 2023"]
[White "Slovineanu, Viacheslav"]
[Black "Bilan, Danila"]
[WhiteFideId "13900510"]
[BlackFideId "24161918"]
[WhiteElo "2383"]
[BlackElo "2500"]
[Result "0-1"]
[Round "11"]
[TimeControl "180+2"]
[Date "2023.07.11"]
[WhiteClock "0:00:04"]
[BlackClock "0:00:40"]
[Board "73"]

1. d4 {[%clk 0:02:55]}  d5 {[%clk 0:02:58]} 2. Nf3 {[%clk 0:02:54]}  Nf6 {[%clk 0:02:58]} 3. c4 {[%clk 0:02:54]}  c6 {[%clk 0:02:58]} 4. e3 {[%clk 0:02:54]}  e6 {[%clk 0:02:56]} 5. Nbd2 {[%clk 0:02:53]}  Nbd7 {[%clk 0:02:57]} 6. Bd3 {[%clk 0:02:53]}  Bd6 {[%clk 0:02:55]} 7. O-O {[%clk 0:02:53]}  e5 {[%clk 0:02:50]} 8. cxd5 {[%clk 0:02:49]}  cxd5 {[%clk 0:02:49]} 9. dxe5 {[%clk 0:02:41]}  Nxe5 {[%clk 0:02:50]} 10. Nxe5 {[%clk 0:02:31]}  Bxe5 {[%clk 0:02:51]} 11. Nf3 {[%clk 0:02:30]}  Bc7 {[%clk 0:02:38]} 12. Bb5+ {[%clk 0:02:21]}  Bd7 {[%clk 0:02:36]} 13. Bxd7+ {[%clk 0:02:13]}  Qxd7 {[%clk 0:02:37]} 14. b3 {[%clk 0:02:06]}  O-O {[%clk 0:02:20]} 15. Bb2 {[%clk 0:02:06]}  Ne4 {[%clk 0:02:16]} 16. Qd4 {[%clk 0:01:40]}  f6 {[%clk 0:02:15]} 17. Rfd1 {[%clk 0:01:35]}  Rfd8 {[%clk 0:02:13]} 18. Rac1 {[%clk 0:01:31]}  a6 {[%clk 0:01:58]} 19. Qd3 {[%clk 0:01:19]}  Rac8 {[%clk 0:01:37]} 20. h3 {[%clk 0:01:17]}  Qd6 {[%clk 0:01:29]} 21. Bd4 {[%clk 0:01:12]}  h5 {[%clk 0:01:23]} 22. Rc2 {[%clk 0:01:07]}  g5 {[%clk 0:01:13]} 23. g4 {[%clk 0:00:39]}  hxg4 {[%clk 0:01:07]} 24. hxg4 {[%clk 0:00:39]}  Qe6 {[%clk 0:01:02]} 25. Kf1 {[%clk 0:00:26]}  Qxg4 {[%clk 0:00:57]} 26. Ke2 {[%clk 0:00:04]}  Qg2 {[%clk 0:00:40]} 0-1


[Site "https://www.chess.com"]

[Event "Titled Tuesday Blitz July 11 Late 2023"]
[White "Omariev, Maksim"]
[Black "Cooper, Aaron"]
[WhiteFideId "4193423"]
[BlackFideId "2634945"]
[WhiteElo "2390"]
[BlackElo "2268"]
[Result "0-1"]
[Round "11"]
[TimeControl "180+2"]
[Date "2023.07.11"]
[WhiteClock "0:00:00"]
[BlackClock "0:00:16"]
[Board "77"]

1. g4 {[%clk 0:03:00]}  d5 {[%clk 0:02:56]} 2. Bg2 {[%clk 0:03:00]}  e5 {[%clk 0:02:46]} 3. d4 {[%clk 0:02:59]}  e4 {[%clk 0:02:44]} 4. h3 {[%clk 0:02:58]}  Bd6 {[%clk 0:02:42]} 5. c4 {[%clk 0:02:58]}  c6 {[%clk 0:02:41]} 6. Nc3 {[%clk 0:02:58]}  Ne7 {[%clk 0:02:38]} 7. Qb3 {[%clk 0:02:53]}  O-O {[%clk 0:02:35]} 8. Bd2 {[%clk 0:02:50]}  Kh8 {[%clk 0:02:26]} 9. cxd5 {[%clk 0:02:46]}  cxd5 {[%clk 0:02:25]} 10. Nxd5 {[%clk 0:02:46]}  Nbc6 {[%clk 0:02:01]} 11. e3 {[%clk 0:02:35]}  Nxd5 {[%clk 0:01:57]} 12. Qxd5 {[%clk 0:02:33]}  Nb4 {[%clk 0:01:51]} 13. Qxe4 {[%clk 0:02:14]}  f5 {[%clk 0:01:44]} 14. Qb1 {[%clk 0:02:14]}  f4 {[%clk 0:01:36]} 15. e4 {[%clk 0:01:48]}  Qb6 {[%clk 0:01:34]} 16. Nf3 {[%clk 0:01:39]}  Qb5 {[%clk 0:01:21]} 17. Bf1 {[%clk 0:01:04]}  Qa4 {[%clk 0:01:20]} 18. Bd3 {[%clk 0:00:12]}  Be6 {[%clk 0:01:12]} 19. b3 {[%clk 0:00:07]}  Qc6 {[%clk 0:01:09]} 20. d5 {[%clk 0:00:05]}  Nxd5 {[%clk 0:01:03]} 21. exd5 {[%clk 0:00:06]}  Bxd5 {[%clk 0:01:04]} 22. O-O {[%clk 0:00:03]}  Bxf3 {[%clk 0:01:03]} 23. Bxh7 {[%clk 0:00:03]}  Bg2 {[%clk 0:00:56]} 24. Rc1 {[%clk 0:00:03]}  Qf3 {[%clk 0:00:47]} 25. Rc3 {[%clk 0:00:03]}  Qe2 {[%clk 0:00:46]} 26. Qd3 {[%clk 0:00:03]}  Qxd3 {[%clk 0:00:34]} 27. Bxd3 {[%clk 0:00:04]}  f3 {[%clk 0:00:30]} 28. Re1 {[%clk 0:00:03]}  Rae8 {[%clk 0:00:24]} 29. Be3 {[%clk 0:00:03]}  Bb4 {[%clk 0:00:23]} 30. Rec1 {[%clk 0:00:02]}  Bxc3 {[%clk 0:00:23]} 31. Rxc3 {[%clk 0:00:03]}  Bxh3 {[%clk 0:00:19]} 32. g5 {[%clk 0:00:03]}  Rxe3 {[%clk 0:00:17]} 33. Kh2 {[%clk 0:00:02]}  Rxd3 {[%clk 0:00:16]} 34. Rxd3 {[%clk 0:00:00]}  Bg2 {[%clk 0:00:16]} 0-1


[Site "https://www.chess.com"]